Cogmind - Beta 13 @@@ ROGUE MODE // 2024.03.17 @ 01:32:34 Player: Infomantis Result: Destroyed by Y-45 Defender with Heavy Assault Rifle Performance ------------- Evolutions (0) 0 Regions Visited (3) 600 Robots Destroyed (25) 125 Value Destroyed (772) 772 Prototype IDs (15) 300 Alien Tech Used (0) 0 Bonus (0) 0 TOTAL SCORE: 1797 Bonus ------- None Cogmind --------- Core Integrity 0/250 Matter 199/300 Energy 93/100 System Corruption 0% Temperature Cool (9) Movement Hovering (76) Location -9/Recycling Parts ------- > --- POWER (1) -------- (None) > --- PROPULSION (2) --- Hovering VTOL-Compact Exoskeleton > --- UTILITY (2) ------ Armored Scrap Engine > --- WEAPON (2) ------- Subdweller Shrapnel Launcher Gatling Kinetic Autogun Construct/G > --- INVENTORY (5) ---- Large Storage Unit Cobbler Unit Power Bank Multitool Peak State ------------ > --- POWER ------------ Light Ion Engine > --- PROPULSION ------- Hovering VTOL-Compact Exoskeleton Subdweller Monowheel > --- UTILITY ---------- Armored Scrap Engine > --- WEAPON ----------- Improved Assault Rifle Subdweller Shrapnel Launcher > --- INVENTORY -------- Cobbler Unit Power Bank Subdweller Beam Cannon Multitool [Rating: 29] Favorites ----------- Power Light Ion Engine Engine Light Ion Engine Propulsion Subdweller Monowheel Treads Light Treads Wheel Subdweller Monowheel Hover Unit Constructs Utility Scrap Shield Device Seismic Detector Storage Small Storage Unit Protection Scrap Shield Weapon Improved Assault Rifle Energy Gun Medium Laser Energy Cannon Subdweller Beam Cannon Ballistic Gun Improved Assault Rifle Launcher Subdweller Shrapnel Launcher Special Weapon Multitool Impact Weapon Heavy Hammer Build | -11 -10 -10 -9 ------- Run | Yrd Mat Sub Rec Slots Evolved . | . . . . Power . | . . . . Propulsion . | . . . . Utility . | . . . . Weapon . | . . . . Parts Attached 40 | 8 6 21 5 Power 4 | 1 . 3 . Engine 4 | 1 . 3 . Core . | . . . . Reactor . | . . . . Propulsion 4 | 2 . 2 . Treads 2 | 2 . . . Leg . | . . . . Wheel 2 | . . 2 . Hover . | . . . . Flight . | . . . . Utility 7 | 2 1 3 1 Device 4 | 1 1 1 1 Storage 1 | 1 . . . Processor . | . . . . Hackware . | . . . . Protection 2 | . . 2 . Artifact . | . . . . Weapon 25 | 3 5 13 4 Energy Gun 6 | 3 2 1 . Energy Cannon 4 | . . 4 . Ballistic Gun 6 | . 2 4 . Ballistic Cannon . | . . . . Launcher 4 | . . 2 2 Special Weapon 2 | . . . 2 Impact Weapon 3 | . 1 2 . Slashing Weapon . | . . . . Piercing Weapon . | . . . . Special Melee Weapon . | . . . . Unidentified Prototypes 1 | . 1 . . Parts Lost 2 | . . 2 . Power . | . . . . Propulsion 2 | . . 2 . Utility . | . . . . Weapon . | . . . . Highest Loss Streak 1 | . . 1 . To Critical Strikes . | . . . . Average Slot Usage (%) 85 | . 99 86 63 Engine 12 | . 14 14 2 Treads 8 | . 28 3 7 Wheel 17 | . . 24 7 Device 5 | . 14 2 14 Storage 3 | . 14 2 . Protection 8 | . . 11 . Energy Gun 5 | . 19 2 4 Energy Cannon 8 | . . 11 . Ballistic Gun 11 | . 6 13 8 Launcher 1 | . . . 11 Naked Turns . | . . . . Heaviest Build 32 | 15 17 32 15 Greatest Support 40 | 40 40 40 36 Greatest Overweight (x) 3 | . . 1 3 Average Overweight (x) . | . . . . Largest Inventory Capacity 8 | 8 8 8 5 Average Capacity 5 | 7 8 5 5 Most Carried 8 | 8 8 8 5 Average Carried 5 | 3 7 5 4 Final Capacity 8 | 8 8 5 5 Final Carried 8 | 8 8 5 5 Scrap Engine Consumption 17 | . . . 17 Constructs Created 2 | . . . 2 Constructs Modified 3 | . . . 3 Class Distribution -------------------- 55% | Subdweller-Mutant 33% | Mutant 10% | Construct Dominant Class ---------------- Mutant | -10/Materials Subdweller-Mutant | -10/Subcaves Construct | -9/Recycling Resources | -11 -10 -10 -9 ----------- Run | Yrd Mat Sub Rec Matter Collected 763 | 280 40 403 40 Remotely . | . . . . Salvage Created 1101 | 137 122 842 . Parts 71 | 10 6 55 . Haulers Intercepted . | . . . . Recyclers Shooed . | . . . . Parts Field Recycled . | . . . . Retrieved Matter . | . . . . Parts Self-Destructed 18 | . . 18 . Prevented . | . . . . Kills | -11 -10 -10 -9 ------- Run | Yrd Mat Sub Rec Combat Hostiles Destroyed 18 | . 3 15 . Melee 1 | . 1 . . Guns 7 | . 2 5 . Cannons 10 | . . 10 . Classes Destroyed 7 | 2 2 3 . Tunneler 5 | 5 . . . Recycler 1 | 1 . . . Watcher 1 | . 1 . . Grunt 3 | . 3 . . Artisan 1 | . . 1 . Cobbler 1 | . . 1 . Subdweller 15 | . . 15 . Best Kill Streak 3 | 3 2 2 . Combat Bots Only 2 | . 2 2 . Max Kills in Single Turn 1 | 1 1 1 . Gunslinging . | . . . . Exploded . | . . . . Melee 1 | . 1 . . Uniques/NPCs Destroyed . | . . . . Combat | -11 -10 -10 -9 -------- Run | Yrd Mat Sub Rec Hostile Shots Fired 132 | . 29 99 4 Missed 35 | . 5 30 . Damage Taken 1626 | . 320 1245 61 Core 255 | . 105 119 31 Absorbed by Shields . | . . . . Core Remaining (%) 100 | 100 . . . Volleys Fired 125 | 17 16 89 3 Largest 2 | 2 2 2 1 Hottest 103 | 100 100 103 44 Shots Fired 197 | 34 32 128 3 Gun 143 | 34 32 76 1 Cannon 50 | . . 50 . Launcher 4 | . . 2 2 Special . | . . . . Kinetic 61 | . . 58 3 Thermal 116 | 34 32 50 . Explosive . | . . . . Electromagnetic 20 | . . 20 . Robot Hit Streak 14 | 7 7 14 2 Robot Miss Streak 3 | 2 3 2 1 Penetration Max . | . . . . Secondary Targets . | . . . . Shots Hit Robots 120 | 20 18 81 1 Core Hits 50 | 7 9 33 1 Critical Kills . | . . . . Critical Parts Destroyed . | . . . . Critical Strikes 1 | . 1 . . Burn 1 | . 1 . . Melee Attacks 10 | . 4 6 . Impact 10 | . 4 6 . Slashing . | . . . . Piercing . | . . . . Sneak Attacks . | . . . . Combat Hostiles . | . . . . Follow-up Attacks . | . . . . Damage Inflicted 2092 | 248 230 1549 65 Guns 1266 | 248 225 783 10 Cannons 593 | . . 593 . Explosions 228 | . . 173 55 Melee . | . . . . Ramming 5 | . 5 . . Kinetic 836 | . . 771 65 Thermal 1066 | 248 225 593 . Explosive . | . . . . Electromagnetic 185 | . . 185 . Impact . | . . . . Slashing . | . . . . Piercing . | . . . . Highest Corruption . | . . . . Average Corruption . | . . . . Corruption Purged . | . . . . Corruption Blocked . | . . . . Overload Shots . | . . . . Overflow Damage . | . . . . Projectiles . | . . . . Explosions . | . . . . Melee . | . . . . Knockbacks . | . . . . Impact . | . . . . Kinetic . | . . . . Secondary . | . . . . Self-Inflicted Damage 64 | . . 64 . Shots 1 | . . 1 . Rammed 2 | . 2 . . Targets Rammed 2 | . 2 . . Kicked . | . . . . Crushed . | . . . . Highest Temperature 325 | 277 325 269 4 Average Temperature 117 | 86 148 117 4 Received Heat Transfer 1106 | . 192 896 18 Siege Activations . | . . . . Robots Corrupted . | . . . . Combat Hostiles . | . . . . Parts Fried . | . . . . Impact Corruptions . | . . . . Robots Melted . | . . . . Combat Hostiles . | . . . . Parts Melted 5 | 2 2 1 . Heat Transferred 2257 | 740 740 777 . Parts Sabotaged . | . . . . Parts Stolen . | . . . . Parts Stripped . | . . . . Power Chain Reactions . | . . . . Alert | -11 -10 -10 -9 ------- Run | Yrd Mat Sub Rec Peak Influence 164 | 30 146 . 164 Initial 144 | . 19 . 144 Average 63 | 16 50 . 100 Maximum Alert Level . | . . . . Low Security (%) 100 | 100 100 . 100 Level 1 . | . . . . Level 2 . | . . . . Level 3 . | . . . . Level 4 . | . . . . Level 5 . | . . . . High Security . | . . . . Max Security . | . . . . Squads Dispatched 1 | . 1 . . Investigation 1 | . 1 . . Extermination . | . . . . Reinforcement . | . . . . Assault . | . . . . Garrison . | . . . . Intercept . | . . . . Searches Triggered . | . . . . Construction Impeded . | . . . . Haulers Reinforced . | . . . . Active Scanning Responses . | . . . . Cargo Convoy Interrupts . | . . . . Stealth | -11 -10 -10 -9 --------- Run | Yrd Mat Sub Rec Distress Signals 2 | . 2 . . Communications Jammed . | . . . . Distress Signals . | . . . . Times Spotted 51 | . 5 45 1 Peak Tracking Total 8 | . 3 8 1 Tactical Retreats 1 | . . 1 . Traps | -11 -10 -10 -9 ------- Run | Yrd Mat Sub Rec Traps Triggered . | . . . . Indirectly . | . . . . Trap Hack Attempts . | . . . . Triggered . | . . . . Disarmed . | . . . . Reprogrammed . | . . . . Reused . | . . . . Traps Extracted . | . . . . Installed . | . . . . Triggered . | . . . . Machines | -11 -10 -10 -9 ---------- Run | Yrd Mat Sub Rec Machines Disabled 1 | . . 1 . Max in Single Turn 1 | . . 1 . Machines Repaired . | . . . . Machines Dismantled . | . . . . Machines Sabotaged . | . . . . Overloaded Fab Kills . | . . . . Hacking | -11 -10 -10 -9 --------- Run | Yrd Mat Sub Rec Machines Accessed 16 | . 4 2 10 Terminals 9 | . 3 . 6 Fabricators . | . . . . Repair Stations . | . . . . Recycling Units 5 | . 1 . 4 Scanalyzers . | . . . . Garrison Access . | . . . . Total Hacks 38 | . 11 4 23 Successful 22 | . 6 4 12 Failed 16 | . 5 . 11 Catastrophic 4 | . 1 . 3 Database Lockouts . | . . . . Manual 11 | . 7 . 4 Terminals 25 | . 7 . 18 Fabricators . | . . . . Repair Stations . | . . . . Recycling Units 9 | . 4 . 5 Scanalyzers . | . . . . Garrison Access . | . . . . Terminal Hacks 15 | . 3 4 8 Record 3 | . . 3 . Part Schematic 6 | . . . 6 Robot Analysis 2 | . 1 . 1 Prototype ID Bank 1 | . . . 1 Maintenance Status 1 | . 1 . . Hauler Manifests 1 | . 1 . . Derelict Proto ID Bank 1 | . . 1 . Fabricator Hacks . | . . . . Repair Station Hacks . | . . . . Recycling Unit Hacks 5 | . 1 . 4 Retrieve Components 5 | . 1 . 4 Scanalyzer . | . . . . Garrison Access Hacks . | . . . . Unauthorized Hacks 2 | . 2 . . Terminals 1 | . 1 . . Botnet 1 | . 1 . . Fabricators . | . . . . Repair Stations . | . . . . Recycling Units 1 | . 1 . . Tunnel 1 | . 1 . . Scanalyzers . | . . . . Garrison Access . | . . . . Data Cores Recovered . | . . . . Used . | . . . . Hacking Detections 8 | . 3 . 5 Full Trace Events 2 | . . . 2 Feedback Events . | . . . . Feedback Blocked . | . . . . Robot Schematics Acquired . | . . . . Robots Built . | . . . . Authchips . | . . . . Time . | . . . . Total Robot Build Rating . | . . . . Part Schematics Acquired 6 | . . . 6 Parts Built . | . . . . Authchips . | . . . . Time . | . . . . Total Part Build Rating . | . . . . Parts Repaired . | . . . . Time . | . . . . Parts Recycled . | . . . . Recycled Matter . | . . . . Retrieved Matter . | . . . . Retrieved Components 11 | . . . 11 Parts Scanalyzed . | . . . . Part Schematics Acquired . | . . . . Parts Damaged . | . . . . Bothacking | -11 -10 -10 -9 ------------ Run | Yrd Mat Sub Rec Used RIF Installer . | . . . . Robots Hacked . | . . . . Non-combat . | . . . . Combat . | . . . . Robot Hacks Applied . | . . . . Relay Couplers Released . | . . . . Fabnet Peak Effective % . | . . . . Robots Rewired . | . . . . Allies Hacked . | . . . . Hacks Repelled . | . . . . Allies | -11 -10 -10 -9 -------- Run | Yrd Mat Sub Rec Total Allies . | . . . . Largest Group . | . . . . Highest-Rated Group . | . . . . Highest-Rated Ally . | . . . . Total Orders . | . . . . Ally Attacks . | . . . . Total Damage . | . . . . Kills . | . . . . Allies Corrupted . | . . . . Allies Melted . | . . . . Intel | -11 -10 -10 -9 ------- Run | Yrd Mat Sub Rec Robot Analysis Total 2 | . 1 . 1 Derelict Logs Recovered 2 | . . 2 . Drone Launches . | . . . . Drone Recoveries . | . . . . Exploration | -11 -10 -10 -9 ------------- Run | Yrd Mat Sub Rec Turns Passed 4878 | 278 747 3242 611 Spaces Moved 3519 | 128 371 2411 609 Core 79 | 3 . . 76 Treads 884 | 125 371 183 205 Legs . | . . . . Wheels 2297 | . . 2228 69 Hover 259 | . . . 259 Flight . | . . . . Fastest Speed 50 | 50 160 100 50 Average Speed 119 | 157 160 118 91 Slowest Speed 200 | 160 160 160 200 Overloaded Moves . | . . . . Propulsion Burnouts . | . . . . Robots Hopped . | . . . . Cave-ins Triggered . | . . . . Exploration Rate (%) 61 | 5 54 98 87 Regions Visited 3 Branch Regions 2 Pre-discovered Areas 4 | . 1 3 . Known Exits Taken . | . . . . Unknown Exits Taken 3 | 1 1 1 . Scrap Searched 16 | . . 16 . Spaces Dug 3 | . 1 2 . Terrain Destroyed 64 | . 1 33 30 Melee 1 | . 1 . . Projectile 4 | . . 4 . AOE 59 | . . 29 30 Terrain Rammed . | . . . . Walls Destroyed . | . . . . Machines Disabled . | . . . . Actions | -11 -10 -10 -9 --------- Run | Yrd Mat Sub Rec Total 3980 | 167 486 2666 661 Wait 213 | 7 74 103 29 Move 3516 | 127 370 2410 609 Hop . | . . . . Pick Up 25 | 8 6 7 4 Fast Attach 14 | 7 1 5 1 Attach 2 | . 1 1 . Detach . | . . . . Swap 24 | 1 4 15 4 Drop 33 | . 8 16 9 Fire 125 | 17 16 89 3 Melee 10 | . 4 6 . Ram . | . . . . Kick . | . . . . Crush 2 | . 2 . . Escape Stasis . | . . . . Rewire . | . . . . Trap . | . . . . Miscellaneous 16 | . . 14 2 Route ------- -11/Scrapyard -10/Materials (discovered 3 exits: [*Mat] / [*Min] / *Sub) -10/Subcaves (discovered 3 exits: [*Mat x2] / *Rec) -9/Recycling History --------- Turn | Location | Event 11 | -11/Scrapyard | Discovered new exit (range 16) 279 | -11/Scrapyard | Entered Materials 318 | -10/Materials | Build established: Mutant 505 | -10/Materials | Discovered new exit (range 16) 765 | -10/Materials | Discovered new exit (range 16) 1021 | -10/Materials | Discovered new exit (range 3) 1026 | -10/Materials | Entered Subcaves 1211 | -10/Subcaves | Shifting Twisted Machinery released Sub. Beam Cannon 1211 | -10/Subcaves | Shifting Twisted Machinery released Battle Rifle 1392 | -10/Subcaves | Core integrity fell below 50% 1488 | -10/Subcaves | Ambushed by angry Subdweller bent on revenge 1665 | -10/Subcaves | A swath of the cavern ceiling suddenly collapsed 1797 | -10/Subcaves | Learned location of Zion (-7) 1797 | -10/Subcaves | Met a Zionite searching for "candidates" 1873 | -10/Subcaves | Build established: Subdweller-Mutant 2261 | -10/Subcaves | Visited Clippyterm 2264 | -10/Subcaves | Learned Research security intel 2264 | -10/Subcaves | Learned Factory stockpile data 2893 | -10/Subcaves | A swath of the cavern ceiling suddenly collapsed 2965 | -10/Subcaves | Discovered new exit (range 12) 2969 | -10/Subcaves | Shifting Twisted Machinery released Piercing Trap 2970 | -10/Subcaves | Shifting Twisted Machinery released Sub. Monowheel 3259 | -10/Subcaves | Shifting Twisted Machinery released Sub. Power Source 3260 | -10/Subcaves | Shifting Twisted Machinery released Sub. Beam Cannon 3974 | -10/Subcaves | Discovered new exit (range 10) 4173 | -10/Subcaves | Visited 4L-MR0's lab 4195 | -10/Subcaves | Found Power Bank 4258 | -10/Subcaves | Discovered new exit (range 10) 4258 | -10/Subcaves | Ambushed by Subdweller buried in earth 4258 | -10/Subcaves | Ambushed by Subdweller buried in earth 4263 | -10/Subcaves | Core integrity fell below 20% 4268 | -10/Subcaves | Entered Recycling 4269 | -9/Recycling | Found Scrap Engine 4643 | -9/Recycling | Build established: Construct 4879 | -9/Recycling | Destroyed by Y-45 Defender with Heavy Assault Rifle Last Messages --------------- 04681_ Scrap Engine modifies Gatling KE Assault Construct/G: Max Damage -3, Range +3, Salvage +1 Renamed Gatling Kinetic Autogun Construct/G. 04689_ Connecting with Terminal... >>Schematic(Lrn. Tractor Beam) Downloading schematic... Lrn. Tractor Beam Rating: 3 Schematic downloaded. 04707_ Connecting with Terminal... 04717_ Dropped Huge Storage Unit. 04718_ Acquired Corrupted Authchip [Storage]. 04720_ Dropped Corrupted Authchip [Storage]. 04720_ Acquired Huge Storage Unit. 04728_ R-06 Scavenger collects Corrupted Authchip [Storage]. 04749_ Dropped Huge Storage Unit. 04750_ Acquired Lrg. Storage Unit. 04876_ Y-45 Defender springs to life. Map ----- +----------------------------------------------------+ | ???????????????????????# " ###???# | | ???????????????????????# " = + #???# | | ???????????????????????# " # #???# | | ???????????????????????##" [ # #???# | | ????????????????????????## # #???# | | ?????????????????????????# # #???# !! | | ?????????????????????????########## #???# ! ! ! | | ??????????????????????????????????# #???# ! | | ??????????????????????????????????# #???#######+## | | ??????????????????????????????????# #????????# | | ??????????????????????????????????# ########## # | | ??????????????????????????????????# # | | ??????????????????????????????????# # | | ???????????????????????############ + | | ???????????????????????# ## # | | ???????????????????????# ## # | | ??????????????????????## """ # """ """ # | | ????????????????????#" """"" / """ """ # | | #???????????????????#T """"" # """ """ # | | #???????????????????#" """"" # # | | #???????????????????## """ # # | | #????????????????????# # ##### | | #???????????????????############ #???# # | | #???????????????????# ! #???# # | | +???????????????????# ### [##"Y"# #???# # | | #???????????????????# @ #?#[[ ##"""# #???# # | | #???????????????????# #?########## #???# # | | #???????????????????# #??# #???# #???# # | | #???????????????????# #??# #???#+###?# # | | #???????????????????# #### #??? !#?# # | | #???????????????????# #?? #?# # | | | #???????????????????# #### # ! #?# # | | #???????????????????# #??# +% #?# # | | #???????????????????# #??# # #?# + | | ##### #????????????## #??# #? ! ] #?# # | | ?????? ;??# # ![ #?# # | | #######???????????## ;#?# # ! ! #?# # | | #??????????????????# Y#?# # #?# # | | #??????????????????# ;??# # ! #?# # | | ##########?????????# ; ?# # #?# | | # #?????????# ???# #########?# | | # " #?????????# ### ???# #?????????# | | # T #?????????# #?? ?### #???#########+# | | # " ########### #?? ?#"" ! #???# [% ! % | | + + #?? ?#"Y | #####! = | | # """ # ######## #????#""! + | | + """ # #?????##+###+#### ##### ! | | # """ + #?????# # #???########### | | # ### #?????# # ######??????#"" | | ######+###?# #?????# # ## !!#????###"Y | +----------------------------------------------------+ Best States ------------- Heat Dissipation 25 Energy Generation 10 Energy Capacity 250 Matter Stores 300 Matter Capacity 300 Sight Range 16 Robot Scan Range 14 Terrain Scan Density 10 Armor Coverage 800 Evasion (%) 50 Recoil Reduction 2 Authchip Count 1 Item Schematics ----------------- Plasma Cutter | -9/Recycling | Hacked Trap Extractor | -9/Recycling | Hacked Trap Scanner | -9/Recycling | Hacked Imp. Salvage Targeting Computer | -9/Recycling | Hacked Hcp. Storage Unit | -9/Recycling | Hacked Lrn. Tractor Beam | -9/Recycling | Hacked Robot Schematics ------------------ None Fabricated ------------ Nothing Alien Tech Used ----------------- None Achievements -------------- None Challenges ------------ None Game ------ Seed PrecisionCobblerPenetrator Manual? 0 Play Time 00:40:48 Cumulative 382.0 hours Start 2024.03.17 @ 00:53:12 End 2024.03.17 @ 01:32:34 Sessions 1 Manual Loads 0 Difficulty Rogue Special Mode None Game No. 248 Rogue 225 Adventurer 6 Explorer 17 Win Type - Total 29 Types 21/0/4/1/0/1/1/1/0 Lore% 92 Gallery% 95 Achievement% 79 Wizard Run 0 Options --------- Layout 1 ASCII 0 Keyboard 0 Movement Numpad Keybinds 0 Fullscreen 1 Font 16/TamsynBold Map View 55x38 Zoom Use 0% Tactical HUD 1 Map Filters NONE Filters NONE Steam 1 RUN: bf89aac4-2eab-433d-ab22-a37b9b960061